[Event "Titled Tuesday Blitz April 19 Early 2022"]
[White "Meekins, Kristopher C"]
[Black "Vidonyak, Roman"]
[WhiteFideId "2005964"]
[BlackFideId "14100622"]
[WhiteElo "2305"]
[BlackElo "2438"]
[Result "1-0"]
[Round "09"]
[TimeControl "180+1"]
[Date "2022.04.19"]
[WhiteClock "0:00:31"]
[BlackClock "0:00:15"]

1. b3 {[%clk 0:03:00]}  Nf6 {[%clk 0:02:49]} 2. Bb2 {[%clk 0:03:00]}  g6 {[%clk 0:02:50]} 3. e3 {[%clk 0:03:00]}  Bg7 {[%clk 0:02:50]} 4. Nf3 {[%clk 0:02:53]}  d5 {[%clk 0:02:45]} 5. d4 {[%clk 0:02:53]}  O-O {[%clk 0:02:45]} 6. Bd3 {[%clk 0:02:51]}  c5 {[%clk 0:02:44]} 7. dxc5 {[%clk 0:02:45]}  Nc6 {[%clk 0:02:43]} 8. a3 {[%clk 0:02:42]}  a5 {[%clk 0:02:43]} 9. Nbd2 {[%clk 0:02:40]}  Re8 {[%clk 0:02:40]} 10. Rb1 {[%clk 0:02:32]}  e5 {[%clk 0:02:40]} 11. e4 {[%clk 0:02:31]}  Bg4 {[%clk 0:02:32]} 12. h3 {[%clk 0:02:28]}  Bxf3 {[%clk 0:02:31]} 13. Qxf3 {[%clk 0:02:27]}  dxe4 {[%clk 0:02:24]} 14. Nxe4 {[%clk 0:02:26]}  Nxe4 {[%clk 0:02:24]} 15. Bxe4 {[%clk 0:02:23]}  Nd4 {[%clk 0:02:24]} 16. Bxd4 {[%clk 0:02:17]}  Qxd4 {[%clk 0:02:12]} 17. O-O {[%clk 0:02:16]}  Qxc5 {[%clk 0:02:11]} 18. Bxb7 {[%clk 0:02:07]}  Rab8 {[%clk 0:02:09]} 19. Bd5 {[%clk 0:02:05]}  Re7 {[%clk 0:01:58]} 20. a4 {[%clk 0:01:50]}  Qxc2 {[%clk 0:01:54]} 21. Rfc1 {[%clk 0:01:35]}  Qd2 {[%clk 0:01:50]} 22. Bc4 {[%clk 0:01:26]}  e4 {[%clk 0:01:44]} 23. Qe3 {[%clk 0:01:26]}  Qb4 {[%clk 0:01:37]} 24. Rd1 {[%clk 0:01:23]}  Kh8 {[%clk 0:01:18]} 25. Rd5 {[%clk 0:01:21]}  f5 {[%clk 0:01:16]} 26. Rbd1 {[%clk 0:01:21]}  Ree8 {[%clk 0:01:06]} 27. Rd7 {[%clk 0:00:59]}  Rbc8 {[%clk 0:00:44]} 28. Qa7 {[%clk 0:00:48]}  Qc3 {[%clk 0:00:44]} 29. Rxg7 {[%clk 0:00:34]}  Qxg7 {[%clk 0:00:42]} 30. Rd7 {[%clk 0:00:34]}  Qa1+ {[%clk 0:00:41]} 31. Kh2 {[%clk 0:00:34]}  Qe5+ {[%clk 0:00:18]} 32. g3 {[%clk 0:00:33]}  Rxc4 {[%clk 0:00:16]} 33. Rxh7+ {[%clk 0:00:31]}  Kg8 {[%clk 0:00:15]} 34. Qf7# {[%clk 0:00:31]} 1-0


[Site "https://www.chess.com"]

[Event "Titled Tuesday Blitz April 19 Early 2022"]
[White "Miszler, Levente"]
[Black "Kadam, Om Manish"]
[WhiteFideId "763276"]
[BlackFideId "45076294"]
[WhiteElo "1966"]
[BlackElo "1729"]
[Result "0-1"]
[Round "09"]
[TimeControl "180+1"]
[Date "2022.04.19"]
[WhiteClock "0:00:05"]
[BlackClock "0:00:11"]

1. Nf3 {[%clk 0:03:00]}  Nf6 {[%clk 0:02:59]} 2. c4 {[%clk 0:03:00]}  g6 {[%clk 0:03:00]} 3. g3 {[%clk 0:03:00]}  Bg7 {[%clk 0:03:00]} 4. Bg2 {[%clk 0:03:00]}  O-O {[%clk 0:03:00]} 5. O-O {[%clk 0:03:01]}  c6 {[%clk 0:03:00]} 6. b3 {[%clk 0:02:56]}  d5 {[%clk 0:03:01]} 7. Bb2 {[%clk 0:02:54]}  Bf5 {[%clk 0:02:58]} 8. d3 {[%clk 0:02:53]}  Nbd7 {[%clk 0:02:57]} 9. Nbd2 {[%clk 0:02:51]}  Re8 {[%clk 0:02:56]} 10. Re1 {[%clk 0:02:46]}  e5 {[%clk 0:02:56]} 11. e4 {[%clk 0:02:45]}  dxe4 {[%clk 0:02:56]} 12. dxe4 {[%clk 0:02:46]}  Bg4 {[%clk 0:02:56]} 13. h3 {[%clk 0:02:45]}  Bxf3 {[%clk 0:02:55]} 14. Nxf3 {[%clk 0:02:46]}  Qe7 {[%clk 0:02:55]} 15. Qd2 {[%clk 0:02:40]}  Rad8 {[%clk 0:02:54]} 16. Qc2 {[%clk 0:02:29]}  Nh5 {[%clk 0:02:41]} 17. Rad1 {[%clk 0:02:27]}  Nf8 {[%clk 0:02:41]} 18. Rxd8 {[%clk 0:02:17]}  Rxd8 {[%clk 0:02:41]} 19. Rd1 {[%clk 0:02:18]}  f6 {[%clk 0:02:36]} 20. c5 {[%clk 0:02:15]}  Rxd1+ {[%clk 0:02:19]} 21. Qxd1 {[%clk 0:02:16]}  Qxc5 {[%clk 0:02:20]} 22. Bc1 {[%clk 0:02:00]}  Ne6 {[%clk 0:01:27]} 23. Be3 {[%clk 0:01:57]}  Qe7 {[%clk 0:01:23]} 24. Bxa7 {[%clk 0:01:54]}  Qa3 {[%clk 0:01:21]} 25. Qd7 {[%clk 0:01:47]}  Nf8 {[%clk 0:01:10]} 26. Qxb7 {[%clk 0:01:46]}  Qxa2 {[%clk 0:01:10]} 27. Be3 {[%clk 0:01:32]}  Qe2 {[%clk 0:01:03]} 28. Kh2 {[%clk 0:01:26]}  f5 {[%clk 0:00:49]} 29. Qxc6 {[%clk 0:01:22]}  Nxg3 {[%clk 0:00:43]} 30. Kxg3 {[%clk 0:01:13]}  f4+ {[%clk 0:00:42]} 31. Bxf4 {[%clk 0:01:12]}  exf4+ {[%clk 0:00:43]} 32. Kh2 {[%clk 0:01:05]}  Qxf2 {[%clk 0:00:42]} 33. Qd5+ {[%clk 0:00:58]}  Kh8 {[%clk 0:00:41]} 34. Ng5 {[%clk 0:00:59]}  h6 {[%clk 0:00:30]} 35. Nf3 {[%clk 0:00:37]}  g5 {[%clk 0:00:20]} 36. Qf5 {[%clk 0:00:29]}  Qg3+ {[%clk 0:00:20]} 37. Kh1 {[%clk 0:00:28]}  Qf2 {[%clk 0:00:20]} 38. Ne5 {[%clk 0:00:23]}  Qe1+ {[%clk 0:00:20]} 39. Kh2 {[%clk 0:00:23]}  Qc3 {[%clk 0:00:20]} 40. Nf7+ {[%clk 0:00:14]}  Kg8 {[%clk 0:00:20]} 41. Qd5 {[%clk 0:00:15]}  Qg3+ {[%clk 0:00:19]} 42. Kh1 {[%clk 0:00:15]}  f3 {[%clk 0:00:18]} 43. Nxg5+ {[%clk 0:00:14]}  Kh8 {[%clk 0:00:18]} 44. Nxf3 {[%clk 0:00:14]}  Ng6 {[%clk 0:00:18]} 45. Qf5 {[%clk 0:00:10]}  Nf4 {[%clk 0:00:15]} 46. Qg4 {[%clk 0:00:10]}  Ne2 {[%clk 0:00:08]} 47. Qxg3 {[%clk 0:00:05]}  Nxg3+ {[%clk 0:00:09]} 48. Kh2 {[%clk 0:00:06]}  Nxe4 {[%clk 0:00:10]} 49. Nh4 {[%clk 0:00:06]}  Nc3 {[%clk 0:00:09]} 50. b4 {[%clk 0:00:05]}  Be5+ {[%clk 0:00:09]} 51. Kg1 {[%clk 0:00:04]}  Kg7 {[%clk 0:00:09]} 52. Nf5+ {[%clk 0:00:03]}  Kg6 {[%clk 0:00:09]} 53. Nh4+ {[%clk 0:00:02]}  Kf6 {[%clk 0:00:09]} 54. Nf3 {[%clk 0:00:03]}  Bd6 {[%clk 0:00:08]} 55. Kf1 {[%clk 0:00:02]}  Bxb4 {[%clk 0:00:08]} 56. Ne1 {[%clk 0:00:03]}  Nd1 {[%clk 0:00:06]} 57. Nd3 {[%clk 0:00:03]}  Bc3 {[%clk 0:00:05]} 58. Nf2 {[%clk 0:00:04]}  Ne3+ {[%clk 0:00:05]} 59. Kg1 {[%clk 0:00:04]}  Bd4 {[%clk 0:00:06]} 60. Kh1 {[%clk 0:00:03]}  Kg5 {[%clk 0:00:06]} 61. Ng4 {[%clk 0:00:02]}  Nf5 {[%clk 0:00:06]} 62. Be4 {[%clk 0:00:02]}  Ng3+ {[%clk 0:00:06]} 63. Kg2 {[%clk 0:00:02]}  Nxe4 {[%clk 0:00:07]} 64. Nh2 {[%clk 0:00:02]}  Bc5 {[%clk 0:00:05]} 65. Nf3+ {[%clk 0:00:02]}  Kf4 {[%clk 0:00:06]} 66. Nh2 {[%clk 0:00:02]}  Nf6 {[%clk 0:00:05]} 67. Nf3 {[%clk 0:00:02]}  Nd5 {[%clk 0:00:05]} 68. Nh4 {[%clk 0:00:02]}  Ne3+ {[%clk 0:00:06]} 69. Kh2 {[%clk 0:00:02]}  Bd6 {[%clk 0:00:06]} 70. Ng6+ {[%clk 0:00:02]}  Kg5+ {[%clk 0:00:06]} 71. Nf4 {[%clk 0:00:01]}  Bxf4+ {[%clk 0:00:06]} 72. Kh1 {[%clk 0:00:02]}  Kh4 {[%clk 0:00:07]} 73. Kg1 {[%clk 0:00:01]}  Kxh3 {[%clk 0:00:08]} 74. Kh1 {[%clk 0:00:02]}  h5 {[%clk 0:00:08]} 75. Kg1 {[%clk 0:00:03]}  h4 {[%clk 0:00:09]} 76. Kh1 {[%clk 0:00:04]}  Kg3 {[%clk 0:00:09]} 77. Kg1 {[%clk 0:00:05]}  Ng4 {[%clk 0:00:09]} 78. Kh1 {[%clk 0:00:06]}  h3 {[%clk 0:00:10]} 79. Kg1 {[%clk 0:00:06]}  h2+ {[%clk 0:00:11]} 80. Kh1 {[%clk 0:00:05]}  Nf2# {[%clk 0:00:11]} 0-1


[Site "https://www.chess.com"]

[Event "Titled Tuesday Blitz April 19 Early 2022"]
[White "Mohammadian, Mohammad"]
[Black "De Arruda, Leandro Formes"]
[WhiteFideId "12566055"]
[BlackFideId "22722009"]
[WhiteElo "1544"]
[BlackElo "1852"]
[Result "0-1"]
[Round "09"]
[TimeControl "180+1"]
[Date "2022.04.19"]
[WhiteClock "0:00:05"]
[BlackClock "0:01:00"]

1. e4 {[%clk 0:03:00]}  e6 {[%clk 0:02:59]} 2. d4 {[%clk 0:02:59]}  d5 {[%clk 0:03:00]} 3. Nd2 {[%clk 0:02:57]}  dxe4 {[%clk 0:03:00]} 4. Nxe4 {[%clk 0:02:55]}  Nd7 {[%clk 0:03:01]} 5. Nf3 {[%clk 0:02:54]}  Ngf6 {[%clk 0:03:02]} 6. Bg5 {[%clk 0:02:52]}  Be7 {[%clk 0:03:02]} 7. Nxf6+ {[%clk 0:02:51]}  Nxf6 {[%clk 0:03:03]} 8. Bxf6 {[%clk 0:02:51]}  Bxf6 {[%clk 0:03:04]} 9. c3 {[%clk 0:02:51]}  O-O {[%clk 0:03:04]} 10. Bd3 {[%clk 0:02:50]}  b6 {[%clk 0:03:04]} 11. O-O {[%clk 0:02:50]}  Bb7 {[%clk 0:03:05]} 12. Bc2 {[%clk 0:02:49]}  g6 {[%clk 0:03:00]} 13. Re1 {[%clk 0:02:47]}  Qd7 {[%clk 0:02:55]} 14. Ne5 {[%clk 0:02:47]}  Bxe5 {[%clk 0:02:48]} 15. Rxe5 {[%clk 0:02:45]}  Rad8 {[%clk 0:02:44]} 16. Qe2 {[%clk 0:02:41]}  Qe7 {[%clk 0:02:40]} 17. Bb3 {[%clk 0:02:31]}  Qf6 {[%clk 0:02:35]} 18. Re1 {[%clk 0:02:25]}  a5 {[%clk 0:02:32]} 19. a4 {[%clk 0:02:23]}  Kg7 {[%clk 0:02:28]} 20. h3 {[%clk 0:02:14]}  Rd6 {[%clk 0:02:26]} 21. Qg4 {[%clk 0:01:50]}  Rfd8 {[%clk 0:02:14]} 22. h4 {[%clk 0:01:50]}  Bd5 {[%clk 0:02:13]} 23. Bxd5 {[%clk 0:01:47]}  Rxd5 {[%clk 0:02:14]} 24. h5 {[%clk 0:01:43]}  c5 {[%clk 0:02:08]} 25. hxg6 {[%clk 0:01:35]}  hxg6 {[%clk 0:02:03]} 26. Rxd5 {[%clk 0:01:29]}  Rxd5 {[%clk 0:02:02]} 27. dxc5 {[%clk 0:01:26]}  Rxc5 {[%clk 0:01:56]} 28. Qe2 {[%clk 0:01:20]}  Rd5 {[%clk 0:01:44]} 29. g3 {[%clk 0:01:18]}  Qg5 {[%clk 0:01:38]} 30. Kg2 {[%clk 0:01:15]}  Kf8 {[%clk 0:01:28]} 31. Qa6 {[%clk 0:01:11]}  Qd2 {[%clk 0:01:23]} 32. Rh1 {[%clk 0:01:06]}  Rd6 {[%clk 0:01:14]} 33. Qc8+ {[%clk 0:00:56]}  Ke7 {[%clk 0:01:09]} 34. Rh8 {[%clk 0:00:36]}  Qd5+ {[%clk 0:01:07]} 35. Kg1 {[%clk 0:00:30]}  Kf6 {[%clk 0:01:05]} 36. Qa6 {[%clk 0:00:17]}  Qf3 {[%clk 0:01:01]} 37. Qa7 {[%clk 0:00:05]}  Rd1+ {[%clk 0:01:00]} 38. Kh2 {[%clk 0:00:05]}  Rh1# {[%clk 0:01:00]} 0-1


[Site "https://www.chess.com"]

[Event "Titled Tuesday Blitz April 19 Early 2022"]
[White "Molina, Roberto Junio Brito"]
[Black "Hnydiuk, Aleksander"]
[WhiteFideId "2109450"]
[BlackFideId "1109057"]
[WhiteElo "2432"]
[BlackElo "2374"]
[Result "1-0"]
[Round "09"]
[TimeControl "180+1"]
[Date "2022.04.19"]
[WhiteClock "0:00:14"]
[BlackClock "0:00:04"]

1. d4 {[%clk 0:03:00]}  Nf6 {[%clk 0:02:59]} 2. c4 {[%clk 0:03:00]}  c5 {[%clk 0:02:59]} 3. d5 {[%clk 0:03:01]}  b5 {[%clk 0:03:00]} 4. cxb5 {[%clk 0:03:01]}  a6 {[%clk 0:03:00]} 5. b6 {[%clk 0:03:02]}  d6 {[%clk 0:02:58]} 6. Nc3 {[%clk 0:03:03]}  g6 {[%clk 0:02:57]} 7. e4 {[%clk 0:03:03]}  Bg7 {[%clk 0:02:57]} 8. Nf3 {[%clk 0:03:02]}  Nbd7 {[%clk 0:02:57]} 9. a4 {[%clk 0:03:02]}  Qxb6 {[%clk 0:02:56]} 10. a5 {[%clk 0:03:03]}  Qb4 {[%clk 0:02:56]} 11. Ra4 {[%clk 0:03:02]}  Qb7 {[%clk 0:02:55]} 12. Nd2 {[%clk 0:03:03]}  Ne5 {[%clk 0:02:36]} 13. Be2 {[%clk 0:03:03]}  O-O {[%clk 0:02:35]} 14. O-O {[%clk 0:03:01]}  Ne8 {[%clk 0:02:25]} 15. f4 {[%clk 0:03:01]}  Nd7 {[%clk 0:02:21]} 16. Nc4 {[%clk 0:02:59]}  Nc7 {[%clk 0:02:21]} 17. Be3 {[%clk 0:02:58]}  Nb5 {[%clk 0:02:21]} 18. Qd2 {[%clk 0:02:58]}  Nd4 {[%clk 0:02:09]} 19. Bd3 {[%clk 0:02:56]}  f5 {[%clk 0:01:55]} 20. exf5 {[%clk 0:02:53]}  gxf5 {[%clk 0:01:55]} 21. Rb1 {[%clk 0:02:44]}  Qb3 {[%clk 0:01:37]} 22. Ra3 {[%clk 0:02:39]}  Qb4 {[%clk 0:01:36]} 23. Ra4 {[%clk 0:02:32]}  Qb3 {[%clk 0:01:36]} 24. Kh1 {[%clk 0:02:16]}  Rb8 {[%clk 0:01:36]} 25. Raa1 {[%clk 0:02:10]}  Kh8 {[%clk 0:01:33]} 26. Na4 {[%clk 0:02:03]}  Bb7 {[%clk 0:01:22]} 27. Nab6 {[%clk 0:01:51]}  Nxb6 {[%clk 0:01:21]} 28. Nxb6 {[%clk 0:01:52]}  Rg8 {[%clk 0:00:55]} 29. Bc4 {[%clk 0:01:09]}  Qc2 {[%clk 0:00:54]} 30. Rd1 {[%clk 0:01:01]}  Qxd2 {[%clk 0:00:41]} 31. Rxd2 {[%clk 0:00:59]}  Rbd8 {[%clk 0:00:36]} 32. Rad1 {[%clk 0:00:57]}  Bf6 {[%clk 0:00:36]} 33. b4 {[%clk 0:00:54]}  Rg4 {[%clk 0:00:30]} 34. bxc5 {[%clk 0:00:40]}  dxc5 {[%clk 0:00:31]} 35. Bd3 {[%clk 0:00:31]}  h5 {[%clk 0:00:17]} 36. Bc4 {[%clk 0:00:19]}  h4 {[%clk 0:00:17]} 37. h3 {[%clk 0:00:19]}  Rg3 {[%clk 0:00:16]} 38. Bf2 {[%clk 0:00:20]}  Rg7 {[%clk 0:00:14]} 39. Kh2 {[%clk 0:00:18]}  Rdg8 {[%clk 0:00:13]} 40. Be3 {[%clk 0:00:18]}  e6 {[%clk 0:00:12]} 41. Bxd4 {[%clk 0:00:15]}  Bxd4 {[%clk 0:00:11]} 42. Re2 {[%clk 0:00:12]}  exd5 {[%clk 0:00:09]} 43. Bxd5 {[%clk 0:00:13]}  Bxd5 {[%clk 0:00:08]} 44. Nxd5 {[%clk 0:00:14]}  Rb7 {[%clk 0:00:03]} 45. Rdd2 {[%clk 0:00:14]}  Rb5 {[%clk 0:00:02]} 46. Ne7 {[%clk 0:00:13]}  Rg7 {[%clk 0:00:01]} 47. Nxf5 {[%clk 0:00:13]}  Rf7 {[%clk 0:00:01]} 48. Nxd4 {[%clk 0:00:13]}  cxd4 {[%clk 0:00:02]} 49. Rxd4 {[%clk 0:00:13]}  Rxa5 {[%clk 0:00:03]} 50. Re8+ {[%clk 0:00:12]}  Kg7 {[%clk 0:00:03]} 51. Re5 {[%clk 0:00:13]}  Rxe5 {[%clk 0:00:03]} 52. fxe5 {[%clk 0:00:14]}  Re7 {[%clk 0:00:03]} 53. Rxh4 {[%clk 0:00:13]}  Rxe5 {[%clk 0:00:03]} 54. Ra4 {[%clk 0:00:13]}  a5 {[%clk 0:00:03]} 55. Kg3 {[%clk 0:00:13]}  Kf6 {[%clk 0:00:03]} 56. Kf4 {[%clk 0:00:13]}  Rf5+ {[%clk 0:00:04]} 57. Ke4 {[%clk 0:00:14]}  Re5+ {[%clk 0:00:03]} 58. Kd3 {[%clk 0:00:14]}  Rg5 {[%clk 0:00:03]} 59. g4 {[%clk 0:00:14]}  Kg6 {[%clk 0:00:03]} 60. Ke3 {[%clk 0:00:14]}  Rb5 {[%clk 0:00:03]} 61. Kf4 {[%clk 0:00:13]}  Rb4+ {[%clk 0:00:03]} 62. Rxb4 {[%clk 0:00:13]}  axb4 {[%clk 0:00:04]} 63. Ke3 {[%clk 0:00:13]}  Kg5 {[%clk 0:00:04]} 64. Kd4 {[%clk 0:00:14]} 1-0


[Site "https://www.chess.com"]

[Event "Titled Tuesday Blitz April 19 Early 2022"]
[White "Mortazavi, Ali"]
[Black "Bilych, Olexiy"]
[WhiteFideId "401323"]
[BlackFideId "14156504"]
[WhiteElo "2339"]
[BlackElo "2176"]
[Result "0-1"]
[Round "09"]
[TimeControl "180+1"]
[Date "2022.04.19"]
[WhiteClock "0:00:11"]
[BlackClock "0:00:12"]

1. Nf3 {[%clk 0:03:00]}  d5 {[%clk 0:02:56]} 2. g3 {[%clk 0:03:00]}  Nf6 {[%clk 0:02:46]} 3. Bg2 {[%clk 0:03:01]}  c5 {[%clk 0:02:47]} 4. O-O {[%clk 0:03:02]}  Nc6 {[%clk 0:02:47]} 5. d3 {[%clk 0:03:02]}  e5 {[%clk 0:02:47]} 6. Nbd2 {[%clk 0:03:01]}  Bd6 {[%clk 0:02:47]} 7. e4 {[%clk 0:03:01]}  d4 {[%clk 0:02:48]} 8. Nh4 {[%clk 0:03:00]}  Bg4 {[%clk 0:02:38]} 9. f3 {[%clk 0:02:56]}  Be6 {[%clk 0:02:37]} 10. a4 {[%clk 0:02:55]}  Bc7 {[%clk 0:02:31]} 11. Nc4 {[%clk 0:02:54]}  O-O {[%clk 0:02:24]} 12. Bd2 {[%clk 0:02:41]}  b6 {[%clk 0:02:17]} 13. Qe1 {[%clk 0:02:40]}  a6 {[%clk 0:02:07]} 14. f4 {[%clk 0:02:40]}  b5 {[%clk 0:02:01]} 15. Na3 {[%clk 0:02:33]}  Rb8 {[%clk 0:01:48]} 16. axb5 {[%clk 0:02:32]}  axb5 {[%clk 0:01:48]} 17. f5 {[%clk 0:02:29]}  Bd7 {[%clk 0:01:47]} 18. h3 {[%clk 0:02:20]}  Ba5 {[%clk 0:01:46]} 19. Bxa5 {[%clk 0:02:05]}  Qxa5 {[%clk 0:01:47]} 20. Qf2 {[%clk 0:02:03]}  Qb4 {[%clk 0:01:38]} 21. Rab1 {[%clk 0:01:52]}  c4 {[%clk 0:01:36]} 22. g4 {[%clk 0:01:46]}  c3 {[%clk 0:01:33]} 23. Qe1 {[%clk 0:01:36]}  Ra8 {[%clk 0:01:24]} 24. Bf3 {[%clk 0:01:31]}  cxb2 {[%clk 0:01:14]} 25. Qxb4 {[%clk 0:01:26]}  Nxb4 {[%clk 0:01:15]} 26. Rxb2 {[%clk 0:01:27]}  Nxd3 {[%clk 0:01:15]} 27. cxd3 {[%clk 0:01:27]}  Rxa3 {[%clk 0:01:15]} 28. g5 {[%clk 0:01:27]}  Ne8 {[%clk 0:01:10]} 29. Be2 {[%clk 0:01:25]}  Nd6 {[%clk 0:01:10]} 30. Nf3 {[%clk 0:01:17]}  f6 {[%clk 0:01:04]} 31. gxf6 {[%clk 0:01:14]}  gxf6 {[%clk 0:01:05]} 32. Kh1 {[%clk 0:01:14]}  Kf7 {[%clk 0:01:02]} 33. Nd2 {[%clk 0:01:08]}  Rg8 {[%clk 0:00:55]} 34. Rc1 {[%clk 0:01:00]}  Ke7 {[%clk 0:00:44]} 35. Rc7 {[%clk 0:00:46]}  Rg3 {[%clk 0:00:42]} 36. Bf1 {[%clk 0:00:35]}  Kd8 {[%clk 0:00:39]} 37. Rc1 {[%clk 0:00:31]}  Rg8 {[%clk 0:00:34]} 38. Nb3 {[%clk 0:00:30]}  Ke7 {[%clk 0:00:30]} 39. Be2 {[%clk 0:00:24]}  Rc8 {[%clk 0:00:28]} 40. Rg1 {[%clk 0:00:21]}  Rc3 {[%clk 0:00:24]} 41. Nd2 {[%clk 0:00:21]}  Bc6 {[%clk 0:00:19]} 42. Rg7+ {[%clk 0:00:19]}  Kf8 {[%clk 0:00:19]} 43. Rxh7 {[%clk 0:00:19]}  Nxf5 {[%clk 0:00:20]} 44. Kh2 {[%clk 0:00:18]}  Ne3 {[%clk 0:00:19]} 45. Bh5 {[%clk 0:00:17]}  Rxd3 {[%clk 0:00:17]} 46. Rf7+ {[%clk 0:00:15]}  Kg8 {[%clk 0:00:18]} 47. Nf3 {[%clk 0:00:14]}  Bxe4 {[%clk 0:00:17]} 48. Nh4 {[%clk 0:00:14]}  Nf5 {[%clk 0:00:14]} 49. Rg2+ {[%clk 0:00:12]}  Bxg2 {[%clk 0:00:14]} 50. Nxf5 {[%clk 0:00:12]}  Be4 {[%clk 0:00:13]} 51. Ne7+ {[%clk 0:00:09]}  Kh8 {[%clk 0:00:13]} 52. Rf8+ {[%clk 0:00:09]}  Kg7 {[%clk 0:00:13]} 53. Rf7+ {[%clk 0:00:08]}  Kh6 {[%clk 0:00:13]} 54. Be2 {[%clk 0:00:05]}  Rxh3+ {[%clk 0:00:13]} 55. Kg1 {[%clk 0:00:05]}  Rag3+ {[%clk 0:00:13]} 56. Kf2 {[%clk 0:00:06]}  Rg2+ {[%clk 0:00:13]} 57. Ke1 {[%clk 0:00:06]}  Re3 {[%clk 0:00:13]} 58. Ng8+ {[%clk 0:00:06]}  Kg5 {[%clk 0:00:11]} 59. Rg7+ {[%clk 0:00:05]}  Kf5 {[%clk 0:00:11]} 60. Rxg2 {[%clk 0:00:06]}  Bxg2 {[%clk 0:00:11]} 61. Nh6+ {[%clk 0:00:07]}  Ke6 {[%clk 0:00:11]} 62. Kf2 {[%clk 0:00:08]}  Bd5 {[%clk 0:00:10]} 63. Bg4+ {[%clk 0:00:08]}  Kd6 {[%clk 0:00:10]} 64. Nf5+ {[%clk 0:00:08]}  Kc5 {[%clk 0:00:11]} 65. Nxe3 {[%clk 0:00:09]}  dxe3+ {[%clk 0:00:11]} 66. Kxe3 {[%clk 0:00:10]}  b4 {[%clk 0:00:12]} 67. Kd2 {[%clk 0:00:11]}  Kd4 {[%clk 0:00:12]} 68. Bf5 {[%clk 0:00:11]}  e4 {[%clk 0:00:12]} 0-1


[Site "https://www.chess.com"]

[Event "Titled Tuesday Blitz April 19 Early 2022"]
[White "Murthy, Pappu"]
[Black "Toncheva, Nadya"]
[WhiteFideId "2013401"]
[BlackFideId "2924056"]
[WhiteElo "1954"]
[BlackElo "1884"]
[Result "0-1"]
[Round "09"]
[TimeControl "180+1"]
[Date "2022.04.19"]
[WhiteClock "0:00:05"]
[BlackClock "0:01:03"]

1. c4 {[%clk 0:03:00]}  Nf6 {[%clk 0:03:00]} 2. Nc3 {[%clk 0:03:00]}  e6 {[%clk 0:03:00]} 3. e4 {[%clk 0:02:59]}  d5 {[%clk 0:02:55]} 4. e5 {[%clk 0:02:57]}  Nfd7 {[%clk 0:02:55]} 5. cxd5 {[%clk 0:02:54]}  exd5 {[%clk 0:02:55]} 6. d4 {[%clk 0:02:55]}  Nb6 {[%clk 0:02:48]} 7. Nf3 {[%clk 0:02:54]}  c5 {[%clk 0:02:47]} 8. Bd3 {[%clk 0:02:51]}  Nc6 {[%clk 0:02:46]} 9. O-O {[%clk 0:02:45]}  Be7 {[%clk 0:02:40]} 10. dxc5 {[%clk 0:02:41]}  Bxc5 {[%clk 0:02:35]} 11. Re1 {[%clk 0:02:28]}  h6 {[%clk 0:02:34]} 12. Bf4 {[%clk 0:02:23]}  O-O {[%clk 0:02:33]} 13. Rc1 {[%clk 0:02:22]}  Bg4 {[%clk 0:02:30]} 14. Bb1 {[%clk 0:02:16]}  Nd4 {[%clk 0:02:22]} 15. Qd3 {[%clk 0:02:07]}  Bf5 {[%clk 0:02:19]} 16. Qe3 {[%clk 0:01:54]}  Nxf3+ {[%clk 0:02:12]} 17. Qxf3 {[%clk 0:01:52]}  Bxb1 {[%clk 0:02:10]} 18. Rxb1 {[%clk 0:01:52]}  d4 {[%clk 0:02:08]} 19. Ne4 {[%clk 0:01:47]}  Be7 {[%clk 0:02:04]} 20. Rbd1 {[%clk 0:01:45]}  Qd5 {[%clk 0:02:03]} 21. Qg3 {[%clk 0:01:42]}  Kh8 {[%clk 0:01:56]} 22. Qh3 {[%clk 0:01:25]}  Qe6 {[%clk 0:01:48]} 23. Qh5 {[%clk 0:01:13]}  Rfd8 {[%clk 0:01:40]} 24. Nf6 {[%clk 0:01:05]}  Bxf6 {[%clk 0:01:38]} 25. Bxh6 {[%clk 0:01:00]}  g6 {[%clk 0:01:11]} 26. Qf3 {[%clk 0:00:19]}  Bg7 {[%clk 0:01:07]} 27. Bxg7+ {[%clk 0:00:18]}  Kxg7 {[%clk 0:01:06]} 28. Re4 {[%clk 0:00:17]}  Rd5 {[%clk 0:01:05]} 29. Rde1 {[%clk 0:00:15]}  Re8 {[%clk 0:01:04]} 30. Rh4 {[%clk 0:00:11]}  Rxe5 {[%clk 0:01:03]} 31. Rf1 {[%clk 0:00:05]}  Re1 {[%clk 0:01:03]} 0-1


[Site "https://www.chess.com"]

[Event "Titled Tuesday Blitz April 19 Early 2022"]
[White "Nazari, Arad"]
[Black "Vlassov, Nikolai"]
[WhiteFideId "12577324"]
[BlackFideId "4103360"]
[WhiteElo "2129"]
[BlackElo "2407"]
[Result "1-0"]
[Round "09"]
[TimeControl "180+1"]
[Date "2022.04.19"]
[WhiteClock "0:00:43"]
[BlackClock "0:00:38"]

1. e4 {[%clk 0:03:00]}  Nc6 {[%clk 0:02:59]} 2. Nf3 {[%clk 0:03:00]}  d5 {[%clk 0:03:00]} 3. e5 {[%clk 0:02:57]}  Bg4 {[%clk 0:02:59]} 4. Bb5 {[%clk 0:02:49]}  e6 {[%clk 0:03:00]} 5. d4 {[%clk 0:02:46]}  Ne7 {[%clk 0:02:58]} 6. c3 {[%clk 0:02:46]}  a6 {[%clk 0:02:52]} 7. Bd3 {[%clk 0:02:45]}  Nf5 {[%clk 0:02:44]} 8. h3 {[%clk 0:02:44]}  Bxf3 {[%clk 0:02:43]} 9. Qxf3 {[%clk 0:02:45]}  Nce7 {[%clk 0:02:44]} 10. Bg5 {[%clk 0:02:31]}  Qd7 {[%clk 0:02:44]} 11. g4 {[%clk 0:02:27]}  h6 {[%clk 0:02:37]} 12. gxf5 {[%clk 0:02:26]}  hxg5 {[%clk 0:02:37]} 13. fxe6 {[%clk 0:02:15]}  fxe6 {[%clk 0:02:36]} 14. Nd2 {[%clk 0:02:12]}  c5 {[%clk 0:02:35]} 15. O-O-O {[%clk 0:02:12]}  cxd4 {[%clk 0:02:35]} 16. cxd4 {[%clk 0:02:13]}  O-O-O {[%clk 0:02:33]} 17. Kb1 {[%clk 0:02:07]}  Nc6 {[%clk 0:02:33]} 18. Nb3 {[%clk 0:02:05]}  Rh4 {[%clk 0:02:30]} 19. Be2 {[%clk 0:01:58]}  Be7 {[%clk 0:02:27]} 20. Qe3 {[%clk 0:01:53]}  Rf8 {[%clk 0:02:25]} 21. Bg4 {[%clk 0:01:52]}  Rf4 {[%clk 0:02:20]} 22. f3 {[%clk 0:01:52]}  Kb8 {[%clk 0:02:17]} 23. Rd2 {[%clk 0:01:45]}  Bb4 {[%clk 0:02:15]} 24. Rc2 {[%clk 0:01:43]}  Rh8 {[%clk 0:02:12]} 25. Rhc1 {[%clk 0:01:43]}  Rc8 {[%clk 0:01:58]} 26. Qd3 {[%clk 0:01:38]}  Bf8 {[%clk 0:01:56]} 27. Qg6 {[%clk 0:01:33]}  Re8 {[%clk 0:01:45]} 28. Qxg5 {[%clk 0:01:22]}  Rxd4 {[%clk 0:01:34]} 29. Nxd4 {[%clk 0:01:10]}  Nxd4 {[%clk 0:01:34]} 30. Rc7 {[%clk 0:01:01]}  Qb5 {[%clk 0:01:26]} 31. Bh5 {[%clk 0:00:47]}  Ba3 {[%clk 0:01:15]} 32. Qd2 {[%clk 0:00:47]}  Rh8 {[%clk 0:00:39]} 33. Qxd4 {[%clk 0:00:43]}  Rxh5 {[%clk 0:00:38]} 34. Rc8# {[%clk 0:00:43]} 1-0


[Site "https://www.chess.com"]